[Event "*** Titled Tuesday Blitz"]
[Site "Chess.com"]
[Date "2020.04.07"]
[Round "2"]
[White "florianschwabeneder"]
[Black "AyMitecK"]
[Result "1-0"]
[WhiteElo "2511"]
[BlackElo "2283"]
[TimeControl "180+1"]
[EndTime "13:20:31 PDT"]
[Termination "florianschwabeneder won on time"]

1. e4 {[%clk 0:03:00.9]} 1... g6 {[%clk 0:02:59]} 2. d4 {[%clk 0:03:00.8]} 2...
Bg7 {[%clk 0:02:58.2]} 3. Nc3 {[%clk 0:03:01.1]} 3... c6 {[%clk 0:02:58.9]} 4.
Nf3 {[%clk 0:03:00.6]} 4... d5 {[%clk 0:02:59.1]} 5. h3 {[%clk 0:03:00.7]} 5...
dxe4 {[%clk 0:02:58.2]} 6. Nxe4 {[%clk 0:03:01.6]} 6... Nf6 {[%clk 0:02:58.8]}
7. Nxf6+ {[%clk 0:03:01.8]} 7... exf6 {[%clk 0:02:59.7]} 8. Be2 {[%clk
0:03:00.4]} 8... O-O {[%clk 0:02:59.6]} 9. O-O {[%clk 0:03:00.6]} 9... Na6
{[%clk 0:02:59.9]} 10. Be3 {[%clk 0:03:00.4]} 10... Nc7 {[%clk 0:02:59.9]} 11.
c4 {[%clk 0:03:00.1]} 11... Be6 {[%clk 0:02:52.2]} 12. Qd2 {[%clk 0:02:59.6]}
12... Re8 {[%clk 0:02:51.4]} 13. Rfd1 {[%clk 0:02:57.2]} 13... b5 {[%clk
0:02:44.5]} 14. d5 {[%clk 0:02:41.2]} 14... cxd5 {[%clk 0:02:39.7]} 15. cxb5
{[%clk 0:02:41.1]} 15... Bd7 {[%clk 0:02:15.5]} 16. Nd4 {[%clk 0:02:39.2]} 16...
f5 {[%clk 0:02:10.3]} 17. Bf1 {[%clk 0:02:29.1]} 17... Bxd4 {[%clk 0:01:54.5]}
18. Qxd4 {[%clk 0:02:11.2]} 18... Bxb5 {[%clk 0:01:34.4]} 19. Bxb5 {[%clk
0:01:57.5]} 19... Nxb5 {[%clk 0:01:35.3]} 20. Qxd5 {[%clk 0:01:58]} 20... Qxd5
{[%clk 0:01:10.7]} 21. Rxd5 {[%clk 0:01:58.9]} 21... Nc7 {[%clk 0:01:11.3]} 22.
Rd7 {[%clk 0:01:57.4]} 22... Rec8 {[%clk 0:00:58.7]} 23. Rc1 {[%clk 0:01:51.5]}
23... Ne6 {[%clk 0:00:33.8]} 24. Rxc8+ {[%clk 0:01:50.6]} 24... Rxc8 {[%clk
0:00:34.7]} 25. Bxa7 {[%clk 0:01:39.3]} 25... Rc1+ {[%clk 0:00:32]} 26. Kh2
{[%clk 0:01:38.8]} 26... Ra1 {[%clk 0:00:25.2]} 27. a3 {[%clk 0:01:37.6]} 27...
Ra2 {[%clk 0:00:25.7]} 28. Rb7 {[%clk 0:01:37]} 28... g5 {[%clk 0:00:23.9]} 29.
Bb8 {[%clk 0:01:23]} 29... f6 {[%clk 0:00:20.6]} 30. Bd6 {[%clk 0:01:21.2]}
30... h5 {[%clk 0:00:19.6]} 31. Re7 {[%clk 0:00:52.2]} 31... Nd4 {[%clk
0:00:18.5]} 32. Bb4 {[%clk 0:00:34.4]} 32... Nc6 {[%clk 0:00:06.1]} 33. Re2
{[%clk 0:00:19.5]} 33... Nxb4 {[%clk 0:00:05.1]} 34. axb4 {[%clk 0:00:20.4]}
34... Ra6 {[%clk 0:00:03.7]} 35. Rc2 {[%clk 0:00:16.3]} 35... Rb6 {[%clk
0:00:03.9]} 36. Rc4 {[%clk 0:00:16.4]} 36... Kf7 {[%clk 0:00:04.3]} 37. h4
{[%clk 0:00:16.5]} 37... f4 {[%clk 0:00:03.9]} 38. f3 {[%clk 0:00:12.8]} 38...
Kg6 {[%clk 0:00:04.1]} 39. Kg1 {[%clk 0:00:11.9]} 39... Kf5 {[%clk 0:00:03.4]}
40. hxg5 {[%clk 0:00:10.4]} 40... fxg5 {[%clk 0:00:04.3]} 41. Kf2 {[%clk
0:00:10.9]} 41... g4 {[%clk 0:00:03.7]} 42. b3 {[%clk 0:00:11]} 42... g3+ {[%clk
0:00:03.6]} 43. Ke2 {[%clk 0:00:11.2]} 43... Kg6 {[%clk 0:00:04.2]} 44. Rxf4
{[%clk 0:00:09]} 44... Rc6 {[%clk 0:00:03.9]} 45. Rc4 {[%clk 0:00:08.1]} 45...
Re6+ {[%clk 0:00:04.8]} 46. Re4 {[%clk 0:00:07.6]} 46... Rb6 {[%clk 0:00:05.1]}
47. Ke3 {[%clk 0:00:06.8]} 47... Kg5 {[%clk 0:00:05]} 48. Re5+ {[%clk 0:00:06]}
48... Kg6 {[%clk 0:00:05]} 49. b5 {[%clk 0:00:05.8]} 49... h4 {[%clk 0:00:02.8]}
50. Kf4 {[%clk 0:00:05.8]} 50... Rd6 {[%clk 0:00:02.5]} 51. Kg4 {[%clk 0:00:05]}
51... Rd4+ {[%clk 0:00:02.7]} 52. Kh3 {[%clk 0:00:04.4]} 52... Rd2 {[%clk
0:00:01.9]} 53. Rc5 {[%clk 0:00:03.6]} 53... Rb2 {[%clk 0:00:02.1]} 54. Rc6+
{[%clk 0:00:03]} 54... Kf5 {[%clk 0:00:03]} 55. Rc5+ {[%clk 0:00:03.2]} 55...
Kf4 {[%clk 0:00:03.7]} 56. Rc4+ {[%clk 0:00:04.1]} 56... Ke3 {[%clk 0:00:04.2]}
57. Rxh4 {[%clk 0:00:05]} 57... Kf2 {[%clk 0:00:04.6]} 58. Rg4 {[%clk
0:00:04.8]} 58... Rxb3 {[%clk 0:00:04.3]} 59. Rxg3 {[%clk 0:00:05.5]} 59... Rxb5
{[%clk 0:00:05.2]} 60. f4 {[%clk 0:00:05.3]} 60... Rh5+ {[%clk 0:00:04.3]} 61.
Kg4 {[%clk 0:00:06.2]} 61... Rh8 {[%clk 0:00:04.8]} 62. Rf3+ {[%clk 0:00:05.6]}
62... Kxg2 {[%clk 0:00:04.4]} 63. Ra3 {[%clk 0:00:06.1]} 63... Kf2 {[%clk
0:00:03.7]} 64. f5 {[%clk 0:00:05.5]} 64... Rg8+ {[%clk 0:00:03.7]} 65. Kf4
{[%clk 0:00:05.7]} 65... Rb8 {[%clk 0:00:02.4]} 66. Ra2+ {[%clk 0:00:05.3]}
66... Ke1 {[%clk 0:00:02.1]} 67. f6 {[%clk 0:00:06.2]} 1-0

[Event "*** Titled Tuesday Blitz"]
[Site "Chess.com"]
[Date "2020.04.07"]
[Round "2"]
[White "SahaNeelash"]
[Black "tomsishere"]
[Result "1-0"]
[WhiteElo "2490"]
[BlackElo "2235"]
[TimeControl "180+1"]
[EndTime "13:20:38 PDT"]
[Termination "SahaNeelash won on time"]

1. d4 {[%clk 0:03:00.9]} 1... Nf6 {[%clk 0:02:59.3]} 2. Bg5 {[%clk 0:02:59.1]}
2... Ne4 {[%clk 0:02:58.5]} 3. Bf4 {[%clk 0:02:59.1]} 3... c5 {[%clk 0:02:58.6]}
4. f3 {[%clk 0:02:59.2]} 4... Qa5+ {[%clk 0:02:56.3]} 5. c3 {[%clk 0:02:59.6]}
5... Nf6 {[%clk 0:02:55.3]} 6. d5 {[%clk 0:03:00]} 6... e6 {[%clk 0:02:50.7]} 7.
e4 {[%clk 0:03:00.1]} 7... exd5 {[%clk 0:02:48.4]} 8. exd5 {[%clk 0:03:01]} 8...
d6 {[%clk 0:02:47.7]} 9. Qd2 {[%clk 0:03:01.5]} 9... Be7 {[%clk 0:02:45.8]} 10.
c4 {[%clk 0:03:02]} 10... Qxd2+ {[%clk 0:02:44.3]} 11. Kxd2 {[%clk 0:03:02.9]}
11... b5 {[%clk 0:02:40.6]} 12. Nc3 {[%clk 0:03:00]} 12... bxc4 {[%clk 0:02:34]}
13. Bxc4 {[%clk 0:03:00.9]} 13... Nbd7 {[%clk 0:02:26.2]} 14. Nb5 {[%clk
0:02:57.4]} 14... Rb8 {[%clk 0:02:10.2]} 15. Re1 {[%clk 0:02:41.4]} 15... Kd8
{[%clk 0:02:05.2]} 16. Rxe7 {[%clk 0:02:34.9]} 16... Rxb5 {[%clk 0:02:00.3]} 17.
Rxd7+ {[%clk 0:02:27.7]} 17... Bxd7 {[%clk 0:01:59.7]} 18. Bxb5 {[%clk
0:02:27.8]} 18... Bxb5 {[%clk 0:02:00.2]} 19. Bxd6 {[%clk 0:02:27.9]} 19... Nxd5
{[%clk 0:01:59.4]} 20. Bxc5 {[%clk 0:02:27.9]} 20... Bf1 {[%clk 0:01:33.6]} 21.
h4 {[%clk 0:02:20.1]} 21... Bxg2 {[%clk 0:01:27.4]} 22. Rh2 {[%clk 0:02:19.9]}
22... Bf1 {[%clk 0:01:27.6]} 23. Bxa7 {[%clk 0:02:19.8]} 23... Kc7 {[%clk
0:01:22.5]} 24. Ke1 {[%clk 0:02:17.7]} 24... Bb5 {[%clk 0:01:15.7]} 25. Rd2
{[%clk 0:02:11.7]} 25... Nb4 {[%clk 0:01:05.2]} 26. a3 {[%clk 0:02:11.3]} 26...
Nd3+ {[%clk 0:00:55.9]} 27. Kd1 {[%clk 0:02:11.2]} 27... Re8 {[%clk 0:00:52.4]}
28. Kc2 {[%clk 0:02:02]} 28... Ne5 {[%clk 0:00:43.8]} 29. Bd4 {[%clk 0:01:50.9]}
29... Nc6 {[%clk 0:00:37.4]} 30. Bxg7 {[%clk 0:01:42.3]} 30... Rg8 {[%clk
0:00:34.7]} 31. Rg2 {[%clk 0:01:41.3]} 31... Kb7 {[%clk 0:00:31.3]} 32. Rg5
{[%clk 0:01:40.7]} 32... Bc4 {[%clk 0:00:27.6]} 33. Bc3 {[%clk 0:01:36.7]} 33...
Re8 {[%clk 0:00:24.5]} 34. b3 {[%clk 0:01:33.9]} 34... Be6 {[%clk 0:00:23.8]}
35. a4 {[%clk 0:01:30.5]} 35... h6 {[%clk 0:00:22.8]} 36. Rc5 {[%clk 0:01:27.7]}
36... Kb6 {[%clk 0:00:21.4]} 37. b4 {[%clk 0:01:26.7]} 37... Rg8 {[%clk
0:00:18.4]} 38. a5+ {[%clk 0:01:24.9]} 38... Kb7 {[%clk 0:00:16.9]} 39. Ne2
{[%clk 0:01:23.5]} 39... Rg2 {[%clk 0:00:16.2]} 40. Kd2 {[%clk 0:01:22.3]} 40...
Ne7 {[%clk 0:00:14.7]} 41. Rb5+ {[%clk 0:01:17.5]} 41... Kc6 {[%clk 0:00:13.8]}
42. Rb6+ {[%clk 0:01:17.1]} 42... Kc7 {[%clk 0:00:12.8]} 43. Be5+ {[%clk
0:01:16.3]} 43... Kd7 {[%clk 0:00:12.5]} 44. Rb7+ {[%clk 0:01:13.6]} 44... Ke8
{[%clk 0:00:10.1]} 45. a6 {[%clk 0:01:07.7]} 45... Nc6 {[%clk 0:00:08.3]} 46.
Bf6 {[%clk 0:00:50.2]} 46... Bc4 {[%clk 0:00:05.2]} 47. a7 {[%clk 0:00:46]}
47... Rxe2+ {[%clk 0:00:02.9]} 48. Kc3 {[%clk 0:00:46]} 48... Nxa7 {[%clk
0:00:02.9]} 49. Kxc4 {[%clk 0:00:42.7]} 49... Nc8 {[%clk 0:00:03.5]} 50. Kd3
{[%clk 0:00:32.8]} 50... Re6 {[%clk 0:00:03.1]} 51. Bd4 {[%clk 0:00:30.6]} 51...
Nd6 {[%clk 0:00:03.2]} 52. Rb8+ {[%clk 0:00:28.5]} 52... Kd7 {[%clk 0:00:03.6]}
53. b5 {[%clk 0:00:25.9]} 53... Re8 {[%clk 0:00:03.8]} 54. Rxe8 {[%clk
0:00:24.8]} 54... Kxe8 {[%clk 0:00:04.7]} 55. b6 {[%clk 0:00:24.7]} 55... Kd7
{[%clk 0:00:05.1]} 56. Be3 {[%clk 0:00:22.3]} 56... h5 {[%clk 0:00:05.1]} 57.
Bf2 {[%clk 0:00:20.2]} 57... Kc6 {[%clk 0:00:05.1]} 58. Ke2 {[%clk 0:00:19.7]}
58... f6 {[%clk 0:00:05.1]} 59. Kd3 {[%clk 0:00:20]} 59... Kd5 {[%clk
0:00:03.2]} 60. Ke2 {[%clk 0:00:20]} 60... Nb7 {[%clk 0:00:02.2]} 61. Bg3 {[%clk
0:00:19.8]} 61... Ke6 {[%clk 0:00:02.1]} 62. Bc7 {[%clk 0:00:20.1]} 62... Kf5
{[%clk 0:00:02.2]} 63. Ke3 {[%clk 0:00:20.3]} 1-0

[Event "*** Titled Tuesday Blitz"]
[Site "Chess.com"]
[Date "2020.04.07"]
[Round "2"]
[White "Tjktiger"]
[Black "eldur16"]
[Result "1-0"]
[WhiteElo "2850"]
[BlackElo "2554"]
[TimeControl "180+1"]
[EndTime "13:20:39 PDT"]
[Termination "Tjktiger won by resignation"]

1. c4 {[%clk 0:03:00.9]} 1... g6 {[%clk 0:02:58.9]} 2. Nc3 {[%clk 0:03:00.5]}
2... Bg7 {[%clk 0:02:58.8]} 3. d4 {[%clk 0:03:00.8]} 3... d6 {[%clk 0:02:58.6]}
4. Nf3 {[%clk 0:03:00.4]} 4... Nf6 {[%clk 0:02:58.4]} 5. g3 {[%clk 0:03:00.6]}
5... O-O {[%clk 0:02:57.8]} 6. Bg2 {[%clk 0:03:01.1]} 6... Nbd7 {[%clk
0:02:57.7]} 7. O-O {[%clk 0:03:01.6]} 7... e5 {[%clk 0:02:57.7]} 8. e4 {[%clk
0:03:02.1]} 8... c6 {[%clk 0:02:57.7]} 9. h3 {[%clk 0:03:02.4]} 9... exd4 {[%clk
0:02:56.5]} 10. Nxd4 {[%clk 0:03:03.3]} 10... Re8 {[%clk 0:02:55.3]} 11. Re1
{[%clk 0:03:03.2]} 11... Nc5 {[%clk 0:02:51.8]} 12. Bf4 {[%clk 0:02:57.1]} 12...
Nh5 {[%clk 0:02:51]} 13. Be3 {[%clk 0:02:56.5]} 13... a5 {[%clk 0:02:49.1]} 14.
Qc2 {[%clk 0:02:56.1]} 14... Qc7 {[%clk 0:02:46.4]} 15. Rad1 {[%clk 0:02:56]}
15... Ne6 {[%clk 0:02:39.4]} 16. Qd2 {[%clk 0:02:23.7]} 16... Nxd4 {[%clk
0:02:34.6]} 17. Bxd4 {[%clk 0:02:24.6]} 17... Be5 {[%clk 0:02:34.2]} 18. Kh2
{[%clk 0:02:17.1]} 18... Be6 {[%clk 0:02:30.6]} 19. f4 {[%clk 0:02:16.1]} 19...
Bxd4 {[%clk 0:02:29.7]} 20. Qxd4 {[%clk 0:02:17]} 20... Rad8 {[%clk 0:02:27.5]}
21. b3 {[%clk 0:02:11.7]} 21... Qe7 {[%clk 0:02:23.3]} 22. Nd5 {[%clk
0:02:01.5]} 22... Bxd5 {[%clk 0:02:12.7]} 23. cxd5 {[%clk 0:01:37.7]} 23... c5
{[%clk 0:02:06.7]} 24. Qc3 {[%clk 0:01:37.3]} 24... b6 {[%clk 0:02:06.7]} 25. e5
{[%clk 0:01:37.4]} 25... dxe5 {[%clk 0:02:05]} 26. fxe5 {[%clk 0:01:36.9]} 26...
Qg5 {[%clk 0:02:03.7]} 27. h4 {[%clk 0:01:12.7]} 27... Qg4 {[%clk 0:01:49.9]}
28. Bh3 {[%clk 0:01:07.5]} 28... Qb4 {[%clk 0:01:49.1]} 29. Qxb4 {[%clk
0:01:05.9]} 29... axb4 {[%clk 0:01:48.2]} 30. d6 {[%clk 0:01:00.1]} 30... Ng7
{[%clk 0:01:36.6]} 31. d7 {[%clk 0:00:59.6]} 31... Re7 {[%clk 0:01:36.1]} 32.
Rd6 {[%clk 0:00:59.1]} 32... Ne6 {[%clk 0:01:24.5]} 33. Bxe6 {[%clk 0:00:58.5]}
33... Rxe6 {[%clk 0:01:20.2]} 34. Rxe6 {[%clk 0:00:54.6]} 34... fxe6 {[%clk
0:01:19.8]} 35. Rd1 {[%clk 0:00:55]} 35... Kf7 {[%clk 0:01:19.4]} 36. Rd6 {[%clk
0:00:54.1]} 36... Ke7 {[%clk 0:01:19.5]} 37. Rxb6 {[%clk 0:00:51.2]} 37... Rxd7
{[%clk 0:01:19.2]} 38. Kh3 {[%clk 0:00:50]} 38... Ra7 {[%clk 0:01:17]} 39. Rb5
{[%clk 0:00:39.9]} 39... Kd7 {[%clk 0:01:08.5]} 40. Rxc5 {[%clk 0:00:39.1]}
40... Rxa2 {[%clk 0:01:07.3]} 41. Rc4 {[%clk 0:00:38.1]} 41... Re2 {[%clk
0:01:03.9]} 42. Rxb4 {[%clk 0:00:36.5]} 42... Kc6 {[%clk 0:01:03.7]} 43. Rc4+
{[%clk 0:00:31.8]} 43... Kb6 {[%clk 0:01:02.6]} 44. Rd4 {[%clk 0:00:27.6]} 44...
Rxe5 {[%clk 0:01:01.6]} 45. Rd7 {[%clk 0:00:28]} 45... h5 {[%clk 0:00:58]} 46.
Rg7 {[%clk 0:00:27.8]} 46... Kc5 {[%clk 0:00:46]} 47. Rxg6 {[%clk 0:00:24.7]}
47... Kb4 {[%clk 0:00:39.8]} 48. Rg5 {[%clk 0:00:24.6]} 48... Rd5 {[%clk
0:00:39.9]} 49. Rg6 {[%clk 0:00:20.5]} 49... e5 {[%clk 0:00:36.4]} 50. Rg5
{[%clk 0:00:17.2]} 50... Kxb3 {[%clk 0:00:35.4]} 51. Rxh5 {[%clk 0:00:17.3]}
51... Kc4 {[%clk 0:00:34.8]} 52. Kg4 {[%clk 0:00:14.6]} 52... Kd4 {[%clk
0:00:33.9]} 53. Rh8 {[%clk 0:00:10.6]} 53... e4 {[%clk 0:00:32.2]} 54. Kf4
{[%clk 0:00:10.7]} 54... Kd3 {[%clk 0:00:29.9]} 55. Re8 {[%clk 0:00:09.8]} 55...
Rd7 {[%clk 0:00:29.3]} 56. h5 {[%clk 0:00:07.5]} 56... Rf7+ {[%clk 0:00:28.6]}
57. Kg5 {[%clk 0:00:07.7]} 57... e3 {[%clk 0:00:27.8]} 58. Kg6 {[%clk
0:00:06.2]} 58... Rd7 {[%clk 0:00:25.4]} 59. h6 {[%clk 0:00:05.7]} 59... e2
{[%clk 0:00:21.4]} 60. h7 {[%clk 0:00:05.5]} 60... Rd6+ {[%clk 0:00:11.4]} 61.
Kg7 {[%clk 0:00:05.5]} 61... Rd7+ {[%clk 0:00:11.1]} 62. Kg8 {[%clk 0:00:05.7]}
1-0

[Event "*** Titled Tuesday Blitz"]
[Site "Chess.com"]
[Date "2020.04.07"]
[Round "2"]
[White "Mikromurks"]
[Black "Ali_rastbod"]
[Result "0-1"]
[WhiteElo "2326"]
[BlackElo "2628"]
[TimeControl "180+1"]
[EndTime "13:20:40 PDT"]
[Termination "Ali_rastbod won by resignation"]

1. d4 {[%clk 0:03:00.9]} 1... g6 {[%clk 0:02:59.8]} 2. Nc3 {[%clk 0:02:58.3]}
2... d5 {[%clk 0:02:59.1]} 3. e4 {[%clk 0:02:53.4]} 3... dxe4 {[%clk 0:02:59.7]}
4. Nxe4 {[%clk 0:02:43.8]} 4... Bg7 {[%clk 0:02:59.4]} 5. Nf3 {[%clk 0:02:36.8]}
5... Nf6 {[%clk 0:02:57]} 6. Nxf6+ {[%clk 0:02:35.1]} 6... exf6 {[%clk
0:02:57.9]} 7. Be2 {[%clk 0:02:35.3]} 7... O-O {[%clk 0:02:57.9]} 8. O-O {[%clk
0:02:35.4]} 8... f5 {[%clk 0:02:58.3]} 9. Bf4 {[%clk 0:02:31.1]} 9... c6 {[%clk
0:02:43.8]} 10. Qd2 {[%clk 0:02:27.9]} 10... Re8 {[%clk 0:02:43.3]} 11. Rfe1
{[%clk 0:02:27.5]} 11... Be6 {[%clk 0:02:40.9]} 12. c4 {[%clk 0:02:21.6]} 12...
Na6 {[%clk 0:02:24.7]} 13. Rad1 {[%clk 0:02:18.5]} 13... Nc7 {[%clk 0:02:13.9]}
14. Bh6 {[%clk 0:02:09.4]} 14... Bf6 {[%clk 0:02:08.9]} 15. Ng5 {[%clk
0:01:56.9]} 15... Qd7 {[%clk 0:01:52.6]} 16. Nxe6 {[%clk 0:01:47.9]} 16... Nxe6
{[%clk 0:01:53.5]} 17. d5 {[%clk 0:01:44.9]} 17... Nd4 {[%clk 0:01:52.5]} 18.
Be3 {[%clk 0:01:29.1]} 18... c5 {[%clk 0:01:41.8]} 19. Bxd4 {[%clk 0:01:26.3]}
19... Bxd4 {[%clk 0:01:42.7]} 20. Bf3 {[%clk 0:01:26.3]} 20... a6 {[%clk
0:01:36]} 21. b3 {[%clk 0:01:20.1]} 21... b5 {[%clk 0:01:31.6]} 22. Rxe8+ {[%clk
0:01:12.8]} 22... Rxe8 {[%clk 0:01:32.5]} 23. Re1 {[%clk 0:01:13.3]} 23... Rb8
{[%clk 0:01:19.7]} 24. Be2 {[%clk 0:01:05.1]} 24... b4 {[%clk 0:01:13.8]} 25.
Qf4 {[%clk 0:01:04.7]} 25... Re8 {[%clk 0:01:10.9]} 26. Kf1 {[%clk 0:01:03.4]}
26... Be5 {[%clk 0:01:08]} 27. Qh4 {[%clk 0:01:01.1]} 27... Bc3 {[%clk
0:01:06.1]} 28. Rd1 {[%clk 0:01:00.7]} 28... Qd6 {[%clk 0:01:05.8]} 29. Qg3
{[%clk 0:00:51.7]} 29... f4 {[%clk 0:01:05.1]} 30. Qd3 {[%clk 0:00:46.7]} 30...
a5 {[%clk 0:01:01.8]} 31. g3 {[%clk 0:00:47]} 31... fxg3 {[%clk 0:00:49.8]} 32.
hxg3 {[%clk 0:00:47.9]} 32... a4 {[%clk 0:00:49.4]} 33. Kg2 {[%clk 0:00:47]}
33... axb3 {[%clk 0:00:49.5]} 34. axb3 {[%clk 0:00:47.9]} 34... f5 {[%clk
0:00:49.8]} 35. Bf3 {[%clk 0:00:43.9]} 35... Kg7 {[%clk 0:00:49.1]} 36. Rc1
{[%clk 0:00:42.5]} 36... Bd4 {[%clk 0:00:45.3]} 37. Rc2 {[%clk 0:00:42.3]} 37...
f4 {[%clk 0:00:36.1]} 38. Re2 {[%clk 0:00:41.4]} 38... Rxe2 {[%clk 0:00:34.2]}
39. Qxe2 {[%clk 0:00:42.3]} 39... fxg3 {[%clk 0:00:35.1]} 40. fxg3 {[%clk
0:00:42.4]} 40... Be5 {[%clk 0:00:35.6]} 41. Qf2 {[%clk 0:00:39.1]} 41... h5
{[%clk 0:00:31.5]} 42. Qe1 {[%clk 0:00:38.8]} 42... Qf6 {[%clk 0:00:30.1]} 43.
Qe4 {[%clk 0:00:38.2]} 43... Qg5 {[%clk 0:00:22.8]} 44. g4 {[%clk 0:00:38.4]}
44... Qd2+ {[%clk 0:00:22.6]} 45. Be2 {[%clk 0:00:38.2]} 45... Qg5 {[%clk
0:00:15.2]} 46. Bf3 {[%clk 0:00:36.7]} 46... h4 {[%clk 0:00:15]} 47. Be2 {[%clk
0:00:34.6]} 47... Kh6 {[%clk 0:00:12.4]} 48. Bf3 {[%clk 0:00:34.1]} 48... Qd2+
{[%clk 0:00:12.4]} 49. Be2 {[%clk 0:00:33.3]} 49... Bf4 {[%clk 0:00:08.3]} 50.
Qe7 {[%clk 0:00:27.6]} 50... h3+ {[%clk 0:00:04.9]} 51. Kxh3 {[%clk 0:00:24.4]}
51... Qc3+ {[%clk 0:00:05.2]} 52. Kg2 {[%clk 0:00:21.9]} 52... Qg3+ {[%clk
0:00:05.3]} 53. Kf1 {[%clk 0:00:21.8]} 53... Qh3+ {[%clk 0:00:05.6]} 54. Kf2
{[%clk 0:00:21.2]} 54... Bg3+ {[%clk 0:00:03.6]} 55. Ke3 {[%clk 0:00:16.5]}
55... Bd6+ {[%clk 0:00:03.5]} 56. Bf3 {[%clk 0:00:16.6]} 56... Bxe7 {[%clk
0:00:04.4]} 0-1

[Event "*** Titled Tuesday Blitz"]
[Site "Chess.com"]
[Date "2020.04.07"]
[Round "2"]
[White "FelixBlohberger"]
[Black "wonderfultime"]
[Result "0-1"]
[WhiteElo "2602"]
[BlackElo "2973"]
[TimeControl "180+1"]
[EndTime "13:20:43 PDT"]
[Termination "wonderfultime won by resignation"]

1. e4 {[%clk 0:02:58.8]} 1... c5 {[%clk 0:02:59.7]} 2. Nf3 {[%clk 0:02:58.6]}
2... Nf6 {[%clk 0:03:00.3]} 3. Nc3 {[%clk 0:02:55.8]} 3... d5 {[%clk 0:03:00.3]}
4. exd5 {[%clk 0:02:54.2]} 4... Nxd5 {[%clk 0:03:01.2]} 5. Bb5+ {[%clk
0:02:51.8]} 5... Bd7 {[%clk 0:03:01.3]} 6. a4 {[%clk 0:02:51.8]} 6... Nf6 {[%clk
0:02:51.4]} 7. d3 {[%clk 0:02:49.2]} 7... Nc6 {[%clk 0:02:49.3]} 8. O-O {[%clk
0:02:46.6]} 8... e6 {[%clk 0:02:49.5]} 9. Re1 {[%clk 0:02:42]} 9... Be7 {[%clk
0:02:48.4]} 10. Bxc6 {[%clk 0:02:41.2]} 10... Bxc6 {[%clk 0:02:48.4]} 11. Ne5
{[%clk 0:02:41.7]} 11... Rc8 {[%clk 0:02:37.5]} 12. Bg5 {[%clk 0:02:27.3]} 12...
O-O {[%clk 0:02:36.7]} 13. Nxc6 {[%clk 0:02:27.3]} 13... Rxc6 {[%clk 0:02:36.3]}
14. Qf3 {[%clk 0:02:27.8]} 14... h6 {[%clk 0:02:35.2]} 15. Bh4 {[%clk
0:02:23.9]} 15... Nd5 {[%clk 0:02:22.4]} 16. Bxe7 {[%clk 0:02:10]} 16... Nxe7
{[%clk 0:02:23.3]} 17. Re4 {[%clk 0:01:44.2]} 17... Nf5 {[%clk 0:02:21]} 18.
Rae1 {[%clk 0:01:41.2]} 18... Nd4 {[%clk 0:02:18.9]} 19. Qd1 {[%clk 0:01:41]}
19... Qf6 {[%clk 0:02:07.4]} 20. h3 {[%clk 0:01:08.3]} 20... Rd8 {[%clk
0:02:04.9]} 21. Qc1 {[%clk 0:01:07.2]} 21... Rb6 {[%clk 0:01:50.1]} 22. Rf4
{[%clk 0:01:03.9]} 22... Qg5 {[%clk 0:01:32.3]} 23. Ne4 {[%clk 0:00:58.3]} 23...
Qe7 {[%clk 0:01:32.6]} 24. b3 {[%clk 0:00:56.9]} 24... e5 {[%clk 0:01:29.4]} 25.
Nd2 {[%clk 0:00:50.4]} 25... Rg6 {[%clk 0:01:12.4]} 26. Nf3 {[%clk 0:00:31.4]}
26... Nc6 {[%clk 0:00:50.1]} 27. Rfe4 {[%clk 0:00:30]} 27... Re6 {[%clk
0:00:49.1]} 28. Qd2 {[%clk 0:00:29.5]} 28... f5 {[%clk 0:00:48.3]} 29. R4e2
{[%clk 0:00:25.5]} 29... e4 {[%clk 0:00:48.8]} 30. Qc3 {[%clk 0:00:25.4]} 30...
Kh8 {[%clk 0:00:19]} 31. dxe4 {[%clk 0:00:24.7]} 31... fxe4 {[%clk 0:00:18]} 32.
Re3 {[%clk 0:00:13.2]} 32... Nd4 {[%clk 0:00:15.4]} 33. Nd2 {[%clk 0:00:06.9]}
33... Rg6 {[%clk 0:00:11.4]} 34. Kh1 {[%clk 0:00:05.1]} 34... Qg5 {[%clk
0:00:07.5]} 35. Rg3 {[%clk 0:00:05.1]} 35... Qf5 {[%clk 0:00:08]} 36. Rxg6
{[%clk 0:00:05.1]} 36... Qxg6 {[%clk 0:00:07.2]} 37. Nxe4 {[%clk 0:00:05.5]}
37... b6 {[%clk 0:00:06.5]} 38. f3 {[%clk 0:00:05.4]} 38... Nf5 {[%clk
0:00:05.3]} 39. Qc4 {[%clk 0:00:02.8]} 39... Re8 {[%clk 0:00:03.9]} 40. Rd1
{[%clk 0:00:03.1]} 40... Ne3 {[%clk 0:00:03.9]} 41. Qe2 {[%clk 0:00:01.9]} 41...
Nxd1 {[%clk 0:00:04]} 42. Qxd1 {[%clk 0:00:02.8]} 42... Qe6 {[%clk 0:00:04.9]}
43. Qe2 {[%clk 0:00:03.1]} 43... Qe5 {[%clk 0:00:03.5]} 44. Qd2 {[%clk
0:00:03.3]} 44... Qa1+ {[%clk 0:00:04.2]} 45. Kh2 {[%clk 0:00:03.1]} 45... Qe5+
{[%clk 0:00:05.1]} 46. Kh1 {[%clk 0:00:03]} 46... Qd4 {[%clk 0:00:05.9]} 47. Qe2
{[%clk 0:00:02.8]} 47... Rd8 {[%clk 0:00:04.4]} 48. Kh2 {[%clk 0:00:02.9]} 48...
Qe5+ {[%clk 0:00:04.8]} 49. Kg1 {[%clk 0:00:02.2]} 49... a5 {[%clk 0:00:05.5]}
50. Kf2 {[%clk 0:00:01.8]} 50... Qd4+ {[%clk 0:00:05.9]} 51. Kf1 {[%clk
0:00:01.7]} 51... c4 {[%clk 0:00:06.8]} 52. Qxc4 {[%clk 0:00:01.3]} 52... Qxc4+
{[%clk 0:00:06.8]} 53. bxc4 {[%clk 0:00:02.2]} 53... Rc8 {[%clk 0:00:07.7]} 54.
Nd6 {[%clk 0:00:02.1]} 54... Rc6 {[%clk 0:00:07.9]} 55. Nb5 {[%clk 0:00:02]}
55... Rxc4 {[%clk 0:00:08.1]} 56. Ke2 {[%clk 0:00:02.5]} 56... Rxa4 {[%clk
0:00:08]} 57. Kd3 {[%clk 0:00:02.9]} 57... Rb4 {[%clk 0:00:08.4]} 58. Nd4 {[%clk
0:00:01.7]} 58... a4 {[%clk 0:00:08.1]} 59. c3 {[%clk 0:00:02.1]} 59... Rb2
{[%clk 0:00:08.3]} 0-1